[Event "Late-Titled-Tuesday-Blitz-October-17-2023"]
[Site "Chess.com"]
[Date "2023.10.17"]
[Round "5"]
[White "expii"]
[Black "Predator0608"]
[Result "0-1"]
[WhiteElo "2257"]
[BlackElo "2512"]
[TimeControl "180+1"]
[EndTime "14:54:20 PDT"]
[Termination "Predator0608 won by resignation"]

1. e4 {[%clk 0:03:00.9]} 1... e5 {[%clk 0:02:59.5]} 2. Nf3 {[%clk 0:02:59.8]}
2... Nc6 {[%clk 0:02:59.4]} 3. Bb5 {[%clk 0:02:59.3]} 3... a6 {[%clk 0:02:58]}
4. Ba4 {[%clk 0:02:59]} 4... Nf6 {[%clk 0:02:55.6]} 5. d4 {[%clk 0:02:57.8]}
5... Nxe4 {[%clk 0:01:55.4]} 6. Qe2 {[%clk 0:02:45.4]} 6... Nf6 {[%clk
0:01:39.3]} 7. dxe5 {[%clk 0:02:31.7]} 7... Nd5 {[%clk 0:01:38.7]} 8. Bb3 {[%clk
0:02:21.8]} 8... Nce7 {[%clk 0:01:18.8]} 9. O-O {[%clk 0:02:07.6]} 9... g6
{[%clk 0:01:13.5]} 10. Nc3 {[%clk 0:01:48.6]} 10... Nxc3 {[%clk 0:01:07.1]} 11.
bxc3 {[%clk 0:01:49.5]} 11... Bg7 {[%clk 0:00:56.7]} 12. Ng5 {[%clk 0:01:41.4]}
12... O-O {[%clk 0:00:56.6]} 13. Qf3 {[%clk 0:01:33.3]} 13... Qe8 {[%clk
0:00:47]} 14. Nxf7 {[%clk 0:00:59.7]} 14... Rxf7 {[%clk 0:00:47]} 15. Bg5 {[%clk
0:00:45.3]} 15... Kf8 {[%clk 0:00:42.8]} 16. Bxf7 {[%clk 0:00:12.2]} 16... Qxf7
{[%clk 0:00:43.7]} 17. Qxf7+ {[%clk 0:00:11.7]} 17... Kxf7 {[%clk 0:00:44.6]}
18. Bxe7 {[%clk 0:00:11.9]} 18... Kxe7 {[%clk 0:00:44.6]} 19. f4 {[%clk
0:00:10.7]} 19... b6 {[%clk 0:00:44.5]} 20. Rad1 {[%clk 0:00:10.2]} 20... Bb7
{[%clk 0:00:44.2]} 21. Rfe1 {[%clk 0:00:10.3]} 21... Rf8 {[%clk 0:00:44]} 22. g3
{[%clk 0:00:09.7]} 22... Ke6 {[%clk 0:00:38.5]} 23. Rd3 {[%clk 0:00:09.4]} 23...
Rf7 {[%clk 0:00:39.4]} 24. Red1 {[%clk 0:00:09.7]} 24... Bf8 {[%clk 0:00:40]}
25. c4 {[%clk 0:00:09.1]} 25... Bc5+ {[%clk 0:00:40.2]} 26. Kf1 {[%clk
0:00:07.4]} 26... Be4 {[%clk 0:00:40.8]} 27. R3d2 {[%clk 0:00:06.3]} 27... g5
{[%clk 0:00:33]} 28. Re1 {[%clk 0:00:05.2]} 28... Bc6 {[%clk 0:00:28.6]} 0-1

[Event "Late-Titled-Tuesday-Blitz-October-17-2023"]
[Site "Chess.com"]
[Date "2023.10.17"]
[Round "5"]
[White "Fdpo95"]
[Black "BobDaKow"]
[Result "1-0"]
[WhiteElo "2499"]
[BlackElo "2072"]
[TimeControl "180+1"]
[EndTime "14:54:30 PDT"]
[Termination "Fdpo95 won by resignation"]

1. e4 {[%clk 0:03:00.9]} 1... c6 {[%clk 0:02:55.2]} 2. d4 {[%clk 0:03:00.7]}
2... d5 {[%clk 0:02:54.9]} 3. Nd2 {[%clk 0:03:01.3]} 3... dxe4 {[%clk
0:02:52.4]} 4. Nxe4 {[%clk 0:03:02.2]} 4... Nf6 {[%clk 0:02:52.4]} 5. Nxf6+
{[%clk 0:03:02.5]} 5... exf6 {[%clk 0:02:52]} 6. c3 {[%clk 0:03:03.2]} 6... Bd6
{[%clk 0:02:48.5]} 7. Bd3 {[%clk 0:03:03.3]} 7... O-O {[%clk 0:02:46.3]} 8. Ne2
{[%clk 0:03:03.9]} 8... Re8 {[%clk 0:02:46.6]} 9. O-O {[%clk 0:03:02.8]} 9... h5
{[%clk 0:02:41.3]} 10. Ng3 {[%clk 0:02:49.7]} 10... h4 {[%clk 0:02:32.3]} 11.
Ne4 {[%clk 0:02:48.4]} 11... h3 {[%clk 0:02:01.9]} 12. g3 {[%clk 0:02:44.8]}
12... Bf5 {[%clk 0:01:40.9]} 13. Qf3 {[%clk 0:02:40.1]} 13... Bg6 {[%clk
0:01:28.1]} 14. Bd2 {[%clk 0:02:21.4]} 14... Na6 {[%clk 0:01:21.5]} 15. Rfe1
{[%clk 0:02:20.7]} 15... Nc7 {[%clk 0:01:20.1]} 16. g4 {[%clk 0:02:09.2]} 16...
Nd5 {[%clk 0:00:57.6]} 17. Qxh3 {[%clk 0:02:08.8]} 17... Nf4 {[%clk 0:00:57]}
18. Bxf4 {[%clk 0:02:07.6]} 18... Bxf4 {[%clk 0:00:56.7]} 19. Qf3 {[%clk
0:02:08.3]} 19... Qc7 {[%clk 0:00:54.1]} 20. h4 {[%clk 0:01:58.5]} 20... Re7
{[%clk 0:00:44.5]} 21. Nc5 {[%clk 0:01:48.8]} 21... Rae8 {[%clk 0:00:41.4]} 22.
Rxe7 {[%clk 0:01:29]} 22... Rxe7 {[%clk 0:00:39.5]} 23. h5 {[%clk 0:01:29.1]}
23... Bxd3 {[%clk 0:00:36.2]} 24. Nxd3 {[%clk 0:01:30]} 24... Bg5 {[%clk
0:00:31]} 25. Kg2 {[%clk 0:01:18.6]} 25... Qb6 {[%clk 0:00:29.2]} 26. Rd1 {[%clk
0:01:02.8]} 26... Re6 {[%clk 0:00:27.6]} 27. Nc5 {[%clk 0:00:58.4]} 27... Re7
{[%clk 0:00:26.5]} 28. b3 {[%clk 0:00:58.2]} 28... a6 {[%clk 0:00:25.2]} 29. Ne4
{[%clk 0:00:54]} 29... Bh6 {[%clk 0:00:23.3]} 30. Ng3 {[%clk 0:00:54.2]} 30...
Bg5 {[%clk 0:00:21]} 31. Nf5 {[%clk 0:00:54.2]} 31... Re6 {[%clk 0:00:20.4]} 32.
c4 {[%clk 0:00:53]} 32... Qc7 {[%clk 0:00:20.2]} 33. d5 {[%clk 0:00:52.8]} 33...
cxd5 {[%clk 0:00:19]} 34. cxd5 {[%clk 0:00:53.7]} 34... Re8 {[%clk 0:00:18.2]}
35. d6 {[%clk 0:00:53.7]} 35... Qd7 {[%clk 0:00:18.2]} 36. Rd5 {[%clk
0:00:49.8]} 36... g6 {[%clk 0:00:17.9]} 37. hxg6 {[%clk 0:00:49.5]} 37... fxg6
{[%clk 0:00:17.7]} 38. Ng3 {[%clk 0:00:47.9]} 38... Re5 {[%clk 0:00:16.1]} 39.
Rxe5 {[%clk 0:00:45.5]} 39... fxe5 {[%clk 0:00:16.2]} 40. Qd5+ {[%clk
0:00:46.1]} 40... Kh7 {[%clk 0:00:15.4]} 41. Qxe5 {[%clk 0:00:46.1]} 41... Bc1
{[%clk 0:00:14.9]} 42. Qe7+ {[%clk 0:00:42.3]} 1-0

[Event "Late-Titled-Tuesday-Blitz-October-17-2023"]
[Site "Chess.com"]
[Date "2023.10.17"]
[Round "5"]
[White "TigrVShlyape"]
[Black "karinachess1"]
[Result "1-0"]
[WhiteElo "2820"]
[BlackElo "2605"]
[TimeControl "180+1"]
[EndTime "14:54:31 PDT"]
[Termination "TigrVShlyape won on time"]

1. e4 {[%clk 0:02:51.1]} 1... e5 {[%clk 0:02:59.7]} 2. Nf3 {[%clk 0:02:49.8]}
2... Nc6 {[%clk 0:02:59.8]} 3. Bb5 {[%clk 0:02:49.9]} 3... Nf6 {[%clk
0:02:59.6]} 4. O-O {[%clk 0:02:49.4]} 4... d6 {[%clk 0:02:59.8]} 5. d4 {[%clk
0:02:44.7]} 5... exd4 {[%clk 0:02:43.5]} 6. Nxd4 {[%clk 0:02:43]} 6... Bd7
{[%clk 0:02:44.2]} 7. Bxc6 {[%clk 0:02:35.5]} 7... bxc6 {[%clk 0:02:43.8]} 8.
Qf3 {[%clk 0:02:35.2]} 8... Be7 {[%clk 0:02:43.9]} 9. e5 {[%clk 0:02:31.3]} 9...
dxe5 {[%clk 0:01:24.2]} 10. Nxc6 {[%clk 0:02:30.6]} 10... e4 {[%clk 0:01:24.9]}
11. Qc3 {[%clk 0:02:30.1]} 11... Nd5 {[%clk 0:01:23.9]} 12. Qc4 {[%clk
0:02:29.9]} 12... Nb6 {[%clk 0:01:16.7]} 13. Qxe4 {[%clk 0:02:29.2]} 13... Bxc6
{[%clk 0:01:15.4]} 14. Qxc6+ {[%clk 0:02:28.6]} 14... Qd7 {[%clk 0:01:16.1]} 15.
Qf3 {[%clk 0:02:21.3]} 15... O-O {[%clk 0:01:15.9]} 16. Nc3 {[%clk 0:02:16.1]}
16... Rad8 {[%clk 0:01:10.8]} 17. Bf4 {[%clk 0:02:07]} 17... Bd6 {[%clk
0:00:56.9]} 18. Rad1 {[%clk 0:01:57.7]} 18... Rfe8 {[%clk 0:00:53.2]} 19. Bxd6
{[%clk 0:01:57.1]} 19... cxd6 {[%clk 0:00:54.1]} 20. Nd5 {[%clk 0:01:47.2]}
20... Re5 {[%clk 0:00:39.8]} 21. Nxb6 {[%clk 0:01:42]} 21... axb6 {[%clk
0:00:40.7]} 22. c4 {[%clk 0:01:40.9]} 22... Qa4 {[%clk 0:00:37.1]} 23. Qb3
{[%clk 0:01:33.8]} 23... Qxb3 {[%clk 0:00:33.9]} 24. axb3 {[%clk 0:01:33.7]}
24... Re2 {[%clk 0:00:34.6]} 25. Rfe1 {[%clk 0:01:31.7]} 25... Rxe1+ {[%clk
0:00:17.7]} 26. Rxe1 {[%clk 0:01:31.5]} 26... Kf8 {[%clk 0:00:18.6]} 27. Rd1
{[%clk 0:01:30.6]} 27... Ke7 {[%clk 0:00:19.1]} 28. Rd5 {[%clk 0:01:30.6]} 28...
Ra8 {[%clk 0:00:18.2]} 29. g3 {[%clk 0:01:28.6]} 29... Ra1+ {[%clk 0:00:18.4]}
30. Kg2 {[%clk 0:01:28.7]} 30... Rb1 {[%clk 0:00:18.4]} 31. Rb5 {[%clk
0:01:28.3]} 31... Rxb2 {[%clk 0:00:18.9]} 32. Rxb6 {[%clk 0:01:28.6]} 32... h5
{[%clk 0:00:19.1]} 33. h4 {[%clk 0:01:27.9]} 33... g6 {[%clk 0:00:19.1]} 34. Kf3
{[%clk 0:01:27.9]} 34... Kd7 {[%clk 0:00:18.5]} 35. Ke3 {[%clk 0:01:26.7]} 35...
Rb1 {[%clk 0:00:17.9]} 36. f3 {[%clk 0:01:26]} 36... Rg1 {[%clk 0:00:17.4]} 37.
Kf4 {[%clk 0:01:25.8]} 37... Rc1 {[%clk 0:00:15.8]} 38. Rb7+ {[%clk 0:01:24.1]}
38... Ke6 {[%clk 0:00:16.3]} 39. Rc7 {[%clk 0:01:23.4]} 39... Rb1 {[%clk
0:00:15.1]} 40. Rb7 {[%clk 0:01:21.2]} 40... Rc1 {[%clk 0:00:15.5]} 41. Rb5
{[%clk 0:01:20]} 41... f6 {[%clk 0:00:14.2]} 42. g4 {[%clk 0:01:14.2]} 42...
hxg4 {[%clk 0:00:13]} 43. fxg4 {[%clk 0:01:14.4]} 43... Rf1+ {[%clk 0:00:13.3]}
44. Kg3 {[%clk 0:01:14]} 44... Rg1+ {[%clk 0:00:13.1]} 45. Kf3 {[%clk
0:01:14.1]} 45... Rf1+ {[%clk 0:00:11.8]} 46. Kg2 {[%clk 0:01:14.4]} 46... Rb1
{[%clk 0:00:10.2]} 47. h5 {[%clk 0:01:14.2]} 47... gxh5 {[%clk 0:00:09.9]} 48.
gxh5 {[%clk 0:01:14.3]} 48... f5 {[%clk 0:00:07.1]} 49. h6 {[%clk 0:01:11.1]}
49... Kf6 {[%clk 0:00:07.5]} 50. Rb6 {[%clk 0:01:11.4]} 50... Rd1 {[%clk
0:00:06.2]} 51. c5 {[%clk 0:01:11]} 51... Kg5 {[%clk 0:00:02.2]} 52. Rxd6 {[%clk
0:01:10.4]} 1-0

[Event "Late-Titled-Tuesday-Blitz-October-17-2023"]
[Site "Chess.com"]
[Date "2023.10.17"]
[Round "5"]
[White "protectiago"]
[Black "KorolDimitriy75"]
[Result "1-0"]
[WhiteElo "2085"]
[BlackElo "2330"]
[TimeControl "180+1"]
[EndTime "14:54:33 PDT"]
[Termination "protectiago won on time"]

1. d4 {[%clk 0:02:56.4]} 1... Nf6 {[%clk 0:02:59.7]} 2. c4 {[%clk 0:02:56]} 2...
c5 {[%clk 0:03:00]} 3. d5 {[%clk 0:02:56.2]} 3... b5 {[%clk 0:03:00.3]} 4. cxb5
{[%clk 0:02:55.6]} 4... a6 {[%clk 0:03:00.5]} 5. bxa6 {[%clk 0:02:56.1]} 5... g6
{[%clk 0:03:00.8]} 6. g3 {[%clk 0:02:55]} 6... Bxa6 {[%clk 0:03:01]} 7. Bg2
{[%clk 0:02:55]} 7... d6 {[%clk 0:03:01.9]} 8. Nf3 {[%clk 0:02:54.8]} 8... Bg7
{[%clk 0:03:02.5]} 9. O-O {[%clk 0:02:55.2]} 9... O-O {[%clk 0:03:03.3]} 10. Nc3
{[%clk 0:02:54.7]} 10... Nbd7 {[%clk 0:03:04]} 11. Qc2 {[%clk 0:02:54.7]} 11...
Qa5 {[%clk 0:03:04]} 12. Rd1 {[%clk 0:02:54.6]} 12... Rfb8 {[%clk 0:03:03.8]}
13. Rb1 {[%clk 0:02:52.8]} 13... Ne8 {[%clk 0:02:52.8]} 14. Bg5 {[%clk
0:02:42.8]} 14... Kf8 {[%clk 0:02:51.1]} 15. Qe4 {[%clk 0:02:40.2]} 15... Ndf6
{[%clk 0:02:38.7]} 16. Qh4 {[%clk 0:02:34]} 16... Rb4 {[%clk 0:02:25.1]} 17. Qh3
{[%clk 0:02:13.6]} 17... Bc8 {[%clk 0:02:21.9]} 18. g4 {[%clk 0:02:00.2]} 18...
Bxg4 {[%clk 0:01:45.2]} 19. Qg3 {[%clk 0:02:00.2]} 19... Nh5 {[%clk 0:01:35.4]}
20. Qh4 {[%clk 0:01:43.6]} 20... f6 {[%clk 0:00:27.7]} 21. a3 {[%clk 0:01:42.7]}
21... Rc4 {[%clk 0:00:19.1]} 22. Nd2 {[%clk 0:01:40.4]} 22... Rd4 {[%clk
0:00:14.2]} 23. Be3 {[%clk 0:01:39.5]} 23... g5 {[%clk 0:00:07.6]} 24. Bxg5
{[%clk 0:01:05.1]} 24... Bxe2 {[%clk 0:00:07.6]} 25. Nb3 {[%clk 0:00:40.4]}
25... Rxh4 {[%clk 0:00:03]} 26. Nxe2 {[%clk 0:00:39.2]} 26... Qa4 {[%clk
0:00:01.8]} 27. Bxh4 {[%clk 0:00:37.5]} 27... Qxh4 {[%clk 0:00:02.5]} 28. Ng3
{[%clk 0:00:31]} 28... Nf4 {[%clk 0:00:01.9]} 29. Nd2 {[%clk 0:00:26.3]} 29...
Nxg2 {[%clk 0:00:01.5]} 30. Kxg2 {[%clk 0:00:26.2]} 1-0

[Event "Late-Titled-Tuesday-Blitz-October-17-2023"]
[Site "Chess.com"]
[Date "2023.10.17"]
[Round "5"]
[White "Genghis_K"]
[Black "Deeper44"]
[Result "1-0"]
[WhiteElo "2855"]
[BlackElo "2637"]
[TimeControl "180+1"]
[EndTime "14:54:34 PDT"]
[Termination "Genghis_K won by checkmate"]

1. e4 {[%clk 0:02:52.8]} 1... e6 {[%clk 0:02:59.7]} 2. d4 {[%clk 0:02:53]} 2...
d5 {[%clk 0:03:00.1]} 3. Nc3 {[%clk 0:02:52.9]} 3... Nf6 {[%clk 0:02:58.3]} 4.
e5 {[%clk 0:02:53.1]} 4... Nfd7 {[%clk 0:02:58.2]} 5. f4 {[%clk 0:02:53.8]} 5...
c5 {[%clk 0:02:58.5]} 6. Nf3 {[%clk 0:02:54.5]} 6... Nc6 {[%clk 0:02:59.2]} 7.
Be3 {[%clk 0:02:55.2]} 7... Be7 {[%clk 0:02:59.9]} 8. Qd2 {[%clk 0:02:55.4]}
8... O-O {[%clk 0:02:59.8]} 9. dxc5 {[%clk 0:02:51.9]} 9... Nxc5 {[%clk
0:02:52.1]} 10. a3 {[%clk 0:02:50.9]} 10... a6 {[%clk 0:02:46.8]} 11. Qf2 {[%clk
0:02:44.5]} 11... Qa5 {[%clk 0:02:31.9]} 12. O-O-O {[%clk 0:02:32.6]} 12... Na4
{[%clk 0:02:31.4]} 13. Nxa4 {[%clk 0:02:28.4]} 13... Qxa4 {[%clk 0:02:32.3]} 14.
Nd4 {[%clk 0:02:20.5]} 14... Bd7 {[%clk 0:02:12.8]} 15. h4 {[%clk 0:01:00]}
15... Rfc8 {[%clk 0:01:59]} 16. Nb3 {[%clk 0:01:00.1]} 16... Nxe5 {[%clk
0:01:46.3]} 17. fxe5 {[%clk 0:00:48.3]} 17... Qxb3 {[%clk 0:01:45.8]} 18. Kb1
{[%clk 0:00:48.2]} 18... Qa4 {[%clk 0:01:35.1]} 19. Rd4 {[%clk 0:00:47.3]} 19...
Qa5 {[%clk 0:01:10.8]} 20. Bd3 {[%clk 0:00:47.2]} 20... Bb5 {[%clk 0:01:09.6]}
21. Bxh7+ {[%clk 0:00:42.9]} 21... Kxh7 {[%clk 0:01:08]} 22. Qxf7 {[%clk
0:00:43.3]} 22... Bf8 {[%clk 0:00:47.3]} 23. h5 {[%clk 0:00:33.4]} 23... Be8
{[%clk 0:00:41.9]} 24. Qxf8 {[%clk 0:00:26.8]} 24... Rxc2 {[%clk 0:00:20.9]} 25.
h6 {[%clk 0:00:20.5]} 25... Rxb2+ {[%clk 0:00:05.7]} 26. Kxb2 {[%clk 0:00:21.4]}
26... Qb6+ {[%clk 0:00:05.7]} 27. Ka1 {[%clk 0:00:19.4]} 27... Qc7 {[%clk
0:00:04.8]} 28. hxg7+ {[%clk 0:00:18.8]} 28... Kg6 {[%clk 0:00:05.3]} 29. Qf6#
{[%clk 0:00:17.9]} 1-0

[Event "Late-Titled-Tuesday-Blitz-October-17-2023"]
[Site "Chess.com"]
[Date "2023.10.17"]
[Round "5"]
[White "wgraif"]
[Black "kai_nov"]
[Result "1-0"]
[WhiteElo "2516"]
[BlackElo "2281"]
[TimeControl "180+1"]
[EndTime "14:54:40 PDT"]
[Termination "wgraif won on time"]

1. e4 {[%clk 0:02:58.8]} 1... c5 {[%clk 0:02:59.2]} 2. Nc3 {[%clk 0:02:57.3]}
2... Nc6 {[%clk 0:02:56.9]} 3. Bb5 {[%clk 0:02:54.6]} 3... Nd4 {[%clk
0:02:51.2]} 4. Nf3 {[%clk 0:02:54]} 4... e6 {[%clk 0:02:42.7]} 5. O-O {[%clk
0:02:47.9]} 5... a6 {[%clk 0:02:20.7]} 6. Bd3 {[%clk 0:02:47.1]} 6... Nc6 {[%clk
0:02:17.7]} 7. e5 {[%clk 0:02:32.5]} 7... d5 {[%clk 0:01:48.9]} 8. exd6 {[%clk
0:02:28.2]} 8... Bxd6 {[%clk 0:01:46.5]} 9. b3 {[%clk 0:02:05.4]} 9... Nf6
{[%clk 0:01:41.6]} 10. Bb2 {[%clk 0:02:03.6]} 10... O-O {[%clk 0:01:41.2]} 11.
Ne4 {[%clk 0:02:02.7]} 11... Be7 {[%clk 0:01:16.6]} 12. a3 {[%clk 0:01:45.9]}
12... b6 {[%clk 0:01:14.9]} 13. Ne5 {[%clk 0:01:26.8]} 13... Bb7 {[%clk
0:01:12]} 14. Nxf6+ {[%clk 0:01:13.4]} 14... Bxf6 {[%clk 0:01:12.9]} 15. f4
{[%clk 0:01:11]} 15... Bxe5 {[%clk 0:00:52.5]} 16. fxe5 {[%clk 0:00:55.9]} 16...
Nd4 {[%clk 0:00:48.9]} 17. Qh5 {[%clk 0:00:46.5]} 17... g6 {[%clk 0:00:45.3]}
18. Qh6 {[%clk 0:00:41.8]} 18... Qd5 {[%clk 0:00:42.8]} 19. Qg5 {[%clk
0:00:31.3]} 19... Nxb3 {[%clk 0:00:31.4]} 20. Rae1 {[%clk 0:00:18.5]} 20... Nxd2
{[%clk 0:00:14.1]} 21. Rf4 {[%clk 0:00:12.3]} 21... c4 {[%clk 0:00:09.1]} 22.
Be2 {[%clk 0:00:05.8]} 22... Qc5+ {[%clk 0:00:05.8]} 23. Bd4 {[%clk 0:00:05.2]}
23... Qd5 {[%clk 0:00:03.3]} 24. Rh4 {[%clk 0:00:02.5]} 24... Rad8 {[%clk
0:00:01.6]} 25. Bf1 {[%clk 0:00:01.4]} 1-0

[Event "Late-Titled-Tuesday-Blitz-October-17-2023"]
[Site "Chess.com"]
[Date "2023.10.17"]
[Round "5"]
[White "Chessdreamer2020"]
[Black "ToddBryant"]
[Result "1-0"]
[WhiteElo "2488"]
[BlackElo "2322"]
[TimeControl "180+1"]
[EndTime "14:54:41 PDT"]
[Termination "Chessdreamer2020 won by checkmate"]

1. e4 {[%clk 0:02:59.8]} 1... c5 {[%clk 0:02:57.2]} 2. Nf3 {[%clk 0:03:00.1]}
2... d6 {[%clk 0:02:56.1]} 3. d4 {[%clk 0:03:00.3]} 3... cxd4 {[%clk 0:02:56.1]}
4. Qxd4 {[%clk 0:03:01.2]} 4... Nc6 {[%clk 0:02:55.9]} 5. Qe3 {[%clk 0:03:01.6]}
5... Nf6 {[%clk 0:02:54.7]} 6. h3 {[%clk 0:03:02]} 6... e6 {[%clk 0:02:54.2]} 7.
Be2 {[%clk 0:03:02.3]} 7... Be7 {[%clk 0:02:54.8]} 8. O-O {[%clk 0:03:02.8]}
8... O-O {[%clk 0:02:55.5]} 9. c4 {[%clk 0:03:03.1]} 9... a6 {[%clk 0:02:53.5]}
10. Rd1 {[%clk 0:03:02.8]} 10... Qa5 {[%clk 0:02:53.8]} 11. Nc3 {[%clk
0:03:02.4]} 11... Rd8 {[%clk 0:02:49.4]} 12. b3 {[%clk 0:02:58.9]} 12... Bd7
{[%clk 0:02:40.5]} 13. Bb2 {[%clk 0:02:58.1]} 13... Be8 {[%clk 0:02:40.9]} 14.
a3 {[%clk 0:02:55.5]} 14... Rac8 {[%clk 0:02:21.4]} 15. b4 {[%clk 0:02:55.6]}
15... Qc7 {[%clk 0:02:22]} 16. Rac1 {[%clk 0:02:56.1]} 16... Nd7 {[%clk
0:02:14.9]} 17. Nd5 {[%clk 0:02:54.2]} 17... exd5 {[%clk 0:02:05.8]} 18. cxd5
{[%clk 0:02:55.1]} 18... Qb6 {[%clk 0:01:58.3]} 19. dxc6 {[%clk 0:02:32.9]}
19... Qxe3 {[%clk 0:01:33.5]} 20. fxe3 {[%clk 0:02:33.8]} 20... Rxc6 {[%clk
0:01:29.6]} 21. Rxc6 {[%clk 0:02:33.4]} 21... bxc6 {[%clk 0:01:29.9]} 22. Bxa6
{[%clk 0:02:33.9]} 22... Rb8 {[%clk 0:01:09.9]} 23. Nd4 {[%clk 0:02:32.2]} 23...
Rb6 {[%clk 0:00:51.6]} 24. Bf1 {[%clk 0:02:26.1]} 24... g6 {[%clk 0:00:49.7]}
25. Bc1 {[%clk 0:02:06.3]} 25... Ne5 {[%clk 0:00:48.2]} 26. Nf3 {[%clk
0:02:03.4]} 26... c5 {[%clk 0:00:30.4]} 27. bxc5 {[%clk 0:01:53]} 27... Nxf3+
{[%clk 0:00:27.8]} 28. gxf3 {[%clk 0:01:53.9]} 28... dxc5 {[%clk 0:00:28.6]} 29.
f4 {[%clk 0:01:38.2]} 29... Ba4 {[%clk 0:00:28.7]} 30. Re1 {[%clk 0:01:27.7]}
30... Bb3 {[%clk 0:00:26.5]} 31. Bb2 {[%clk 0:01:18.4]} 31... c4 {[%clk
0:00:20.1]} 32. Rc1 {[%clk 0:01:18.4]} 32... Rc6 {[%clk 0:00:16.2]} 33. e5
{[%clk 0:01:15.9]} 33... Kf8 {[%clk 0:00:15.2]} 34. Kf2 {[%clk 0:01:15.8]} 34...
Bc5 {[%clk 0:00:14.7]} 35. Bd4 {[%clk 0:01:14.5]} 35... Bxa3 {[%clk 0:00:13]}
36. Ra1 {[%clk 0:01:14.9]} 36... Bb4 {[%clk 0:00:12.4]} 37. Ra8+ {[%clk
0:01:14.6]} 37... Ke7 {[%clk 0:00:12.6]} 38. Ra7+ {[%clk 0:01:14.5]} 38... Ke8
{[%clk 0:00:12]} 39. Bg2 {[%clk 0:01:13.4]} 39... Rc8 {[%clk 0:00:10.1]} 40. Bd5
{[%clk 0:01:13]} 40... Be7 {[%clk 0:00:06.1]} 41. e4 {[%clk 0:01:10.3]} 41... h5
{[%clk 0:00:05.3]} 42. f5 {[%clk 0:01:10.6]} 42... Bc2 {[%clk 0:00:04.6]} 43. f6
{[%clk 0:01:03.1]} 43... Bc5 {[%clk 0:00:05.2]} 44. Bxf7+ {[%clk 0:01:03]} 44...
Kf8 {[%clk 0:00:05]} 45. Bxc5+ {[%clk 0:01:00.9]} 45... Rxc5 {[%clk 0:00:05.9]}
46. Bd5 {[%clk 0:01:01.4]} 46... Ba4 {[%clk 0:00:04.5]} 47. Ra8+ {[%clk
0:01:00.5]} 47... Be8 {[%clk 0:00:04.8]} 48. f7 {[%clk 0:01:00.8]} 48... c3
{[%clk 0:00:03.1]} 49. Rxe8+ {[%clk 0:01:00]} 49... Kg7 {[%clk 0:00:04]} 50.
f8=Q+ {[%clk 0:00:59.8]} 50... Kh7 {[%clk 0:00:04.3]} 51. Re7# {[%clk 0:01:00]}
1-0

[Event "Late-Titled-Tuesday-Blitz-October-17-2023"]
[Site "Chess.com"]
[Date "2023.10.17"]
[Round "5"]
[White "The_Princess_Moon"]
[Black "topin8"]
[Result "1-0"]
[WhiteElo "2341"]
[BlackElo "2477"]
[TimeControl "180+1"]
[EndTime "14:54:44 PDT"]
[Termination "The_Princess_Moon won on time"]

1. e4 {[%clk 0:03:00.9]} 1... c5 {[%clk 0:02:48.1]} 2. Nf3 {[%clk 0:02:59.8]}
2... Nc6 {[%clk 0:02:48.8]} 3. Bb5 {[%clk 0:02:57.4]} 3... g6 {[%clk 0:02:48.3]}
4. Bxc6 {[%clk 0:02:56.9]} 4... dxc6 {[%clk 0:02:48.5]} 5. O-O {[%clk
0:02:56.5]} 5... Bg7 {[%clk 0:02:49.1]} 6. Re1 {[%clk 0:02:57.1]} 6... e5 {[%clk
0:02:44.7]} 7. h3 {[%clk 0:02:58]} 7... Qc7 {[%clk 0:02:44.2]} 8. d3 {[%clk
0:02:56.4]} 8... Nf6 {[%clk 0:02:42.3]} 9. Be3 {[%clk 0:02:56.2]} 9... b6 {[%clk
0:02:40.3]} 10. a4 {[%clk 0:02:50.2]} 10... a5 {[%clk 0:02:38.3]} 11. c3 {[%clk
0:02:43.8]} 11... O-O {[%clk 0:02:26.3]} 12. Qc2 {[%clk 0:02:40.7]} 12... Nh5
{[%clk 0:02:24.4]} 13. Nbd2 {[%clk 0:02:28.6]} 13... h6 {[%clk 0:02:17]} 14. d4
{[%clk 0:02:27.6]} 14... cxd4 {[%clk 0:02:06.4]} 15. cxd4 {[%clk 0:02:28.5]}
15... exd4 {[%clk 0:02:06.8]} 16. Nxd4 {[%clk 0:02:24.1]} 16... c5 {[%clk
0:01:42.5]} 17. Nb5 {[%clk 0:02:20.5]} 17... Qc6 {[%clk 0:01:40.7]} 18. Nc4
{[%clk 0:01:58.8]} 18... Be6 {[%clk 0:01:32]} 19. Rad1 {[%clk 0:01:53.8]} 19...
Rfd8 {[%clk 0:01:30.3]} 20. b3 {[%clk 0:01:51.2]} 20... f5 {[%clk 0:01:23.7]}
21. exf5 {[%clk 0:01:41.8]} 21... Bxf5 {[%clk 0:01:24.6]} 22. Qc1 {[%clk
0:01:41.4]} 22... g5 {[%clk 0:00:10.8]} 23. Rxd8+ {[%clk 0:01:35.7]} 23... Rxd8
{[%clk 0:00:10]} 24. Rd1 {[%clk 0:01:36.4]} 24... Rxd1+ {[%clk 0:00:04.2]} 25.
Qxd1 {[%clk 0:01:37.3]} 25... Bg6 {[%clk 0:00:04.4]} 26. Qd8+ {[%clk 0:01:29.5]}
26... Kh7 {[%clk 0:00:03.7]} 27. Qxb6 {[%clk 0:01:28.1]} 27... Qe4 {[%clk
0:00:04.3]} 28. Nd2 {[%clk 0:01:11.3]} 28... Qc2 {[%clk 0:00:04.3]} 29. Qxc5
{[%clk 0:01:04.7]} 29... Qd1+ {[%clk 0:00:04.7]} 30. Kh2 {[%clk 0:01:04.2]}
30... g4 {[%clk 0:00:04.8]} 31. Nc3 {[%clk 0:00:54.8]} 31... g3+ {[%clk
0:00:03.9]} 32. fxg3 {[%clk 0:00:49.7]} 32... Qe1 {[%clk 0:00:04.8]} 33. Nf3
{[%clk 0:00:33.3]} 33... Qxg3+ {[%clk 0:00:02.8]} 34. Kh1 {[%clk 0:00:31.2]}
34... Qb8 {[%clk 0:00:01.1]} 35. Qe7 {[%clk 0:00:18.4]} 1-0